bitfinex/quotes_ETHUSD_20250722
["timestamp","ask_amount","ask_price","bid_price","bid_amount"]
[1753143926763,0.02652747,3773.9,3773.5,4.187]
[1753143927870,2.67631027,3773.9,3773.5,4.187]
[1753143928669,0.02652747,3773.9,3773.5,4.187]
[1753143928870,2.64984895,3773.8,3773.5,4.187]
[1753143929072,2.67633235,3773.9,3773.5,4.187]
[1753143929290,0.02652747,3773.9,3773.5,4.187]
[1753143929763,2.64996414,3773.7,3773.5,4.055]
[1753143930352,6.07135824,3773.6,3773.3,0.001]
[1753143930538,8.72135537,3773.6,3773.3,0.001]
[1753143930739,6.07135824,3773.6,3773.3,0.001]
[1753143931182,8.72135397,3773.6,3773.3,0.001]
[1753143931541,8.72135397,3773.6,3773.5,0.001]
[1753143931757,6.07135824,3773.6,3773.5,0.001]
[1753143931961,6.09788571,3773.6,3773.5,0.001]
[1753143932275,2.64993502,3773.7,3773.5,0.001]
[1753143933668,2.7348834,3773.8,3773.5,0.001]
[1753143933999,0.0585,3773.8,3773.5,0.001]
[1753143934358,2.70835874,3773.8,3773.5,0.001]
[1753143934667,0.08502747,3773.8,3773.5,0.001]
[1753143934987,4.055,3773.8,3773.6,0.4337]
[1753143935188,2.78178763,3773.9,3773.6,0.4337]
[1753143935404,4.055,3774.4,3773.7,0.4337]
[1753143935571,4.055,3774.4,3773.9,2.64971996]
[1753143935572,4.187,3774.4,3773.9,2.64971996]
[1753143935774,4.187,3774.4,3774.0,0.4337]
[1753143935968,4.187,3774.4,3774.1,0.4337]
[1753143936418,4.187,3774.4,3773.9,3.46071996]
[1753143936419,4.187,3774.4,3774.2,0.4337]
[1753143936579,4.187,3774.4,3773.8,2.78183651]
[1753143936580,2.67605578,3774.3,3773.8,0.132]
[1753143936775,2.64957561,3774.2,3773.8,0.132]
[1753143936976,0.02652747,3774.1,3773.8,0.132]
[1753143937192,0.0585,3774.0,3773.8,0.132]
[1753143938200,2.84023676,3774.0,3773.5,4.056]
[1753143938401,0.02652747,3773.9,3773.5,4.4897]
[1753143939711,2.64986132,3773.8,3773.5,4.4897]
[1753143939892,2.64979962,3773.9,3773.5,4.4897]
[1753143940092,2.86676413,3774.0,3773.5,4.4897]
[1753143940589,2.86676413,3774.0,3773.5,0.4347]
[1753143940795,2.64987172,3773.8,3773.5,0.001]
[1753143941407,2.64993171,3773.7,3773.5,0.001]
[1753143941730,2.64986129,3773.8,3773.5,0.001]
[1753143942084,2.67632106,3773.9,3773.5,0.001]
[1753143942312,0.02652747,3773.9,3773.5,0.001]
[1753143942698,2.67633333,3773.9,3773.5,0.001]
[1753143943905,0.02652747,3773.9,3773.5,0.001]
[1753143944229,2.64984895,3773.8,3773.5,0.001]
[1753143944819,0.02652747,3773.9,3773.5,0.001]
[1753143944820,2.67633058,3773.9,3773.5,0.001]
[1753143945127,0.1905,3774.0,3773.5,0.001]
[1753143945303,0.2095,3774.7,3773.5,0.001]
[1753143945304,2.70778932,3774.6,3773.7,0.7826]
[1753143945492,4.08152747,3774.4,3773.8,3.21554479]
[1753143945693,6.73100103,3774.4,3773.8,3.21554479]
[1753143945910,2.64949792,3774.3,3773.8,0.5657]
[1753143946103,6.73097213,3774.4,3773.8,3.2155313]
[1753143946321,4.08152747,3774.4,3773.9,2.64977349]
[1753143946623,4.055,3774.4,3774.0,0.4337]
[1753143946822,4.189,3774.5,3774.0,0.4337]
[1753143947119,0.002,3774.5,3774.1,0.4623]
[1753143947295,0.002,3774.5,3774.2,0.132]
[1753143947821,0.002,3774.5,3774.3,3.11179162]
[1753143948024,0.002,3774.5,3774.4,2.64942772]
[1753143948227,0.002,3774.5,3774.4,3.11172772]
[1753143950044,0.002,3774.5,3774.4,0.4623]
[1753143950609,0.002,3774.5,3774.4,3.11172772]
[1753143951509,0.002,3774.5,3774.4,0.4623]
[1753143952712,0.002,3774.5,3774.4,3.11172772]
[1753143953608,0.002,3774.5,3774.4,0.4623]
[1753143955550,0.002,3774.5,3774.3,4.053]
[1753143956633,0.002,3774.5,3774.3,6.70248844]
[1753143956960,0.002,3774.5,3774.4,3.11172772]
[1753143957116,0.002,3774.5,3774.4,0.4623]
[1753143957972,0.002,3774.5,3774.4,3.11172772]
[1753143958643,0.002,3774.5,3774.4,0.4623]
[1753143958845,0.002,3774.5,3774.4,7.92090772]
[1753143959032,0.002,3774.5,3774.4,7.29672772]
[1753143959232,0.002,3774.5,3774.4,8.12962772]
[1753143961337,0.002,3774.5,3774.4,3.61432772]
[1753143961555,0.002,3774.5,3774.4,0.132]
[1753143961759,0.002,3774.5,3774.4,4.184]
[1753143962446,0.002,3774.5,3774.4,4.6463]
[1753143962774,0.002,3774.5,3774.4,7.29572772]
[1753143963176,0.002,3774.5,3774.4,4.6463]
[1753143963540,0.002,3774.5,3774.4,7.29572772]
[1753143963976,0.002,3774.5,3774.4,4.6463]
[1753143964356,0.002,3774.5,3774.4,7.29572772]
[1753143964654,0.002,3774.5,3774.4,3.24372772]
[1753143964880,0.002,3774.5,3774.4,4.6463]
[1753143965086,0.002,3774.5,3774.4,7.29572772]
[1753143965878,0.002,3774.5,3774.4,3.24372772]
[1753143966195,0.002,3774.5,3774.4,7.99484005]
[1753143966372,0.002,3774.5,3774.4,8.73924578]
[1753143967869,0.002,3774.5,3774.4,4.68724578]
[1753143968080,0.002,3774.5,3774.4,8.73924578]
[1753143970389,0.002,3774.5,3774.4,8.73824578]
[1753143973775,0.002,3774.5,3774.4,11.73824578]
[1753143975108,0.002,3774.5,3774.4,11.73924578]
[1753143979109,0.002,3774.5,3774.4,11.73824578]
[1753143980599,0.002,3774.5,3774.4,7.50504578]
[1753143980801,0.002,3774.5,3774.4,3.45504578]
[1753143981048,0.002,3774.5,3774.4,0.133]
[1753143981331,0.002,3774.5,3774.4,6.70042772]
[1753143981531,0.002,3774.5,3774.4,8.11422772]
[1753143982637,0.002,3775.1,3775.0,2.64900662]
[1753143982927,0.002,3775.1,3775.0,6.69900662]
[1753143983229,0.002,3775.1,3775.0,8.32733539]
[1753143983409,0.002,3775.1,3775.0,8.30084533]
[1753143983935,0.002,3775.1,3775.0,4.25084533]
[1753143984092,0.002,3775.1,3775.0,7.28690662]
[1753143987313,0.002,3775.1,3775.0,4.181]
[1753143987504,0.002,3775.1,3775.0,4.049]
[1753143987704,0.002,3775.1,3775.0,6.69800662]
[1753143987938,0.02852747,3775.1,3775.0,4.049]
[1753143988146,0.134,3775.1,3775.0,4.049]
[1753143989032,0.134,3775.1,3775.0,6.69800662]
[1753143989600,0.002,3775.1,3775.0,6.69800662]
[1753143991906,0.002,3775.1,3775.0,4.049]
[1753143992108,0.002,3775.1,3774.7,2.64919602]
[1753143992337,0.268,3775.0,3774.8,4.049]
[1753143992906,0.002,3775.1,3775.0,2.64900662]
[1753143993103,0.002,3775.1,3775.0,6.69800662]
[1753143993707,0.002,3775.1,3775.0,2.64900662]
[1753143995227,0.002,3775.1,3774.9,6.69801742]
[1753143995428,0.002,3775.1,3775.0,2.64900662]
[1753143996426,0.002,3775.1,3775.0,4.13211964]
[1753143996636,0.0585,3776.0,3775.2,0.7792]
[1753143996836,0.132,3776.1,3775.7,2.64845489]
[1753143997036,0.132,3776.1,3775.8,0.4559]
[1753143997235,6.07135824,3776.5,3775.6,4.049]
[1753143997236,0.0585,3776.4,3775.6,4.049]
[1753143997439,6.07135824,3776.7,3776.2,0.7777]
[1753143997440,0.132,3776.7,3776.2,0.7777]
[1753143997754,0.082,3776.7,3776.3,7.15294619]
[1753143997950,0.082,3776.7,3776.3,4.5049]
[1753143999160,0.082,3776.7,3776.0,0.132]
[1753143999161,0.0585,3776.6,3776.0,0.132]
[1753143999359,0.0585,3775.0,3774.4,0.001]
[1753143999522,3.132,3776.0,3774.4,0.001]
[1753143999523,6.20335824,3775.1,3774.4,0.001]
[1753143999722,6.20335824,3775.1,3774.4,3.10630511]
[1753143999951,0.02652747,3775.0,3774.4,0.4569]
[1753144000122,0.02652747,3775.0,3774.4,0.001]
[1753144000472,2.67556236,3775.0,3774.4,0.001]
[1753144000672,8.72062231,3774.7,3774.4,0.001]
[1753144000869,0.02652747,3774.6,3774.4,0.001]
[1753144001437,0.02652747,3774.7,3774.4,0.001]
[1753144002981,0.132,3774.8,3774.4,0.001]
[1753144003187,0.02652747,3775.2,3774.4,0.001]
[1753144003188,0.132,3775.0,3774.5,0.4559]
[1753144003345,0.132,3775.0,3774.4,0.001]
[1753144003551,0.02652747,3774.9,3774.4,0.001]
[1753144003773,2.67560871,3774.9,3774.4,0.001]
[1753144003969,0.02652747,3774.9,3774.4,0.001]
[1753144004208,0.0585,3774.7,3774.4,0.001]
[1753144004546,0.08502747,3774.7,3774.4,0.001]
[1753144005497,2.64935753,3774.5,3774.4,0.001]
[1753144005653,2.807885,3774.5,3774.4,0.001]
[1753144005990,4.181,3774.5,3774.4,0.001]
[1753144006191,4.049,3774.5,3774.4,0.001]
[1753144006369,0.132,3774.7,3774.4,0.4569]
[1753144006570,0.132,3775.0,3774.5,0.4559]
[1753144006887,0.132,3775.0,3774.7,2.64921025]
[1753144007052,0.132,3775.0,3774.9,2.64907679]
[1753144007252,2.64846556,3775.8,3774.7,2.64921025]
[1753144007253,0.132,3775.4,3774.8,3.11159828]
[1753144007455,0.132,3775.4,3774.8,0.4625]
[1753144007861,0.132,3775.4,3775.0,2.64894778]
[1753144008072,0.02652747,3775.3,3775.0,2.64894778]
[1753144008563,0.132,3775.4,3774.8,0.4625]
[1753144008564,0.132,3775.4,3774.9,2.6490498]
[1753144008774,0.02652747,3775.3,3774.8,0.4625]
[1753144009098,0.02652747,3775.3,3774.9,2.64907153]
[1753144009305,0.02652747,3775.3,3775.0,2.6489984]
[1753144009863,0.02652747,3775.3,3774.9,2.64904936]
[1753144011397,0.02652747,3775.3,3775.0,2.649005]
[1753144012004,0.02652747,3775.3,3775.0,2.64896302]
[1753144012170,4.181,3775.4,3775.0,2.64896302]
[1753144012582,0.132,3775.4,3775.0,2.64896302]
[1753144012781,4.181,3775.4,3775.0,2.64896302]
[1753144013103,4.181,3775.4,3775.0,3.11146302]
[1753144013285,0.132,3775.4,3775.0,2.64896302]
[1753144013615,0.02652747,3775.3,3774.9,2.64906162]
[1753144013990,0.0585,3775.1,3774.4,0.001]
[1753144014196,2.78110885,3774.9,3774.4,0.001]
[1753144014492,2.67568853,3774.8,3774.4,0.001]
[1753144014687,0.02652747,3774.8,3774.4,0.001]
[1753144014865,2.78135753,3774.5,3774.4,0.001]
[1753144015486,0.132,3774.5,3774.4,0.001]
[1753144017785,4.049,3774.6,3774.4,0.4635]
[1753144018921,4.049,3774.6,3774.4,0.001]
[1753144019078,4.049,3774.6,3774.4,2.6504141]
[1753144019279,4.049,3774.6,3774.4,0.001]
[1753144020523,0.132,3774.7,3774.4,0.001]
[1753144020676,0.0585,3775.0,3774.4,0.001]
[1753144020677,0.0585,3775.0,3774.7,2.64921715]
[1753144020879,0.0585,3775.0,3774.7,0.4625]
[1753144020880,4.181,3774.9,3774.7,0.4625]
[1753144021105,4.20752747,3774.9,3774.5,2.6493498]
[1753144021298,4.20752747,3774.9,3774.6,2.64927964]
[1753144021822,0.132,3774.9,3774.8,2.64914697]
[1753144021992,4.049,3775.0,3774.9,2.64904213]
[1753144022491,4.049,3775.0,3774.9,3.11154213]
[1753144022883,4.049,3775.0,3774.7,2.6491664]
[1753144023121,4.049,3775.0,3774.8,2.64912981]
[1753144024129,4.049,3775.0,3774.9,2.64907679]
[1753144024461,0.132,3775.2,3775.1,2.64893645]
[1753144024637,4.181,3775.2,3775.0,3.11149053]
[1753144025357,4.181,3775.2,3774.9,2.64905698]
[1753144025548,0.02652747,3775.1,3775.0,2.64900662]
[1753144025728,4.181,3775.2,3775.0,2.64900662]
[1753144026023,4.181,3775.2,3774.9,3.11155467]
[1753144026228,0.02652747,3775.1,3774.9,3.11155467]
[1753144027255,0.02652747,3775.1,3775.0,2.64900662]
[1753144027557,4.181,3775.2,3775.1,2.64893645]
[1753144027937,4.181,3775.2,3774.7,0.4625]
[1753144028261,0.02652747,3775.1,3774.9,2.64907047]
[1753144029069,0.02652747,3775.1,3775.0,2.64900662]
[1753144029235,4.181,3775.2,3775.0,2.64900662]
[1753144029436,4.181,3775.2,3774.9,3.1115724]
[1753144029636,0.02652747,3775.1,3774.9,3.1115724]
[1753144031162,0.02652747,3775.1,3775.0,2.64900662]
[1753144031339,4.181,3775.2,3775.0,2.64900662]
[1753144031539,4.20752747,3775.2,3775.0,2.64900662]
[1753144031739,4.20752747,3775.2,3774.9,3.11155372]
[1753144031942,4.20752747,3775.2,3774.9,3.11156]
[1753144033164,4.20752747,3775.2,3775.0,2.64899774]
[1753144033567,4.20752747,3775.2,3774.9,2.64904741]
[1753144035066,4.20752747,3775.2,3774.8,2.64911885]
[1753144035567,4.20752747,3775.2,3774.7,2.64917842]
[1753144035967,4.20752747,3775.2,3774.8,2.64914109]
[1753144036762,4.20752747,3775.2,3774.7,2.64918661]
[1753144037260,0.132,3775.2,3775.1,2.64893645]
[1753144037429,4.048,3775.2,3775.1,2.64893645]
[1753144037625,4.048,3775.2,3775.1,3.08183645]
[1753144039306,0.132,3775.4,3775.2,2.64882175]
[1753144039583,4.18,3775.4,3775.2,0.4329]
[1753144040348,0.02652747,3775.3,3775.2,0.4329]
[1753144040571,4.048,3775.3,3775.2,3.08176628]
[1753144041248,0.132,3775.4,3775.3,2.64879612]
[1753144041484,0.33045219,3775.7,3775.4,2.64866521]
[1753144041655,0.132,3775.7,3775.1,0.132]
[1753144041850,4.048,3775.6,3775.2,3.08176628]
[1753144042051,4.048,3775.6,3775.4,2.64869201]
[1753144042485,4.048,3775.6,3775.3,3.08168403]
[1753144042661,4.048,3775.6,3775.3,0.4329]
[1753144042864,4.048,3775.6,3775.3,2.64879243]
[1753144043183,4.048,3775.6,3775.4,2.64870356]
[1753144043555,4.048,3775.6,3775.3,2.64878419]
[1753144043864,4.048,3775.6,3775.3,2.64874163]
[1753144044787,6.06191406,3775.4,3775.1,2.64890404]
[1753144044970,0.02652747,3775.3,3775.1,2.64890404]
[1753144045170,0.02652747,3775.3,3775.1,3.08180404]
[1753144045376,4.07452747,3775.3,3775.1,3.08180404]
[1753144045586,4.07452747,3775.3,3775.2,2.64886628]
[1753144045793,4.048,3775.3,3775.2,2.64886628]
[1753144046092,4.048,3775.3,3775.2,3.08176628]
[1753144047786,4.048,3775.3,3775.2,0.4329]
[1753144047983,4.048,3775.3,3775.2,3.08176628]
[1753144048164,4.048,3775.3,3775.0,0.4329]
[1753144048366,4.048,3775.3,3775.2,2.64886628]
[1753144050193,4.07452747,3775.3,3774.9,2.78103725]
[1753144050386,4.07452747,3775.3,3774.9,0.132]
[1753144050558,4.07452747,3775.3,3774.9,2.78104272]
[1753144052087,4.07452747,3775.3,3775.0,2.64899477]
[1753144052387,4.07452747,3775.3,3774.9,2.7810531]
[1753144052592,0.02652747,3775.3,3775.1,2.6489299]
[1753144052794,4.047,3775.4,3775.1,3.0818299]
[1753144052993,4.047,3775.4,3774.9,0.5649]
[1753144053290,4.047,3775.4,3775.0,0.4329]
[1753144053478,4.047,3775.4,3775.2,2.64886628]
[1753144053684,4.047,3775.4,3775.2,3.08176628]
[1753144054394,4.047,3775.4,3775.2,0.4329]
[1753144054798,0.02652747,3775.3,3775.2,0.4329]
[1753144055094,0.02652747,3775.3,3775.1,2.64893471]
[1753144055399,0.02652747,3775.3,3775.1,3.08183471]
[1753144055796,0.02652747,3775.3,3775.1,0.4329]
[1753144056095,6.14694153,3775.3,3774.9,2.78106217]
[1753144056267,4.047,3775.2,3774.9,2.78106217]
[1753144056859,4.047,3775.2,3775.1,2.64893645]
[1753144057300,4.047,3775.2,3775.1,3.08183645]
[1753144058193,6.06191406,3775.7,3775.5,2.6486558]
[1753144058396,6.08844153,3775.7,3775.6,0.4329]
[1753144058600,0.33437801,3775.8,3775.7,2.6485155]
[1753144058601,0.132,3775.8,3775.7,2.6485155]
[1753144058763,6.09044153,3776.0,3775.7,2.6485155]
[1753144058958,0.134,3776.0,3775.9,2.64837522]
[1753144059165,0.134,3776.0,3775.9,7.97265897]
[1753144059166,0.002,3776.0,3775.9,7.97265897]
[1753144059363,0.002,3776.0,3775.9,8.07817522]
[1753144061167,0.002,3776.0,3775.9,8.07717522]
[1753144062097,0.002,3776.0,3775.6,4.046]
[1753144062315,0.002,3776.0,3775.8,2.64840253]
[1753144062471,0.002,3776.0,3775.9,2.64837522]
[1753144062980,0.002,3776.0,3775.3,3.90116479]
[1753144063198,0.134,3776.0,3775.6,2.64857341]
[1753144063486,0.02652747,3775.9,3775.5,2.64863395]
[1753144063689,6.06191406,3775.6,3775.3,4.046]
[1753144063892,0.02652747,3775.5,3775.4,2.64872596]
[1753144064071,6.19391406,3775.6,3775.4,2.64872596]
[1753144064804,6.19391406,3775.6,3775.5,0.4329]
[1753144065314,0.02652747,3775.8,3775.5,0.4329]
[1753144065486,4.178,3775.9,3775.7,2.64849979]
[1753144065905,4.178,3775.9,3775.8,0.4329]
[1753144066109,4.046,3775.9,3775.8,3.08134536]
[1753144066315,0.002,3776.0,3775.9,2.64837522]
[1753144066500,0.002,3776.0,3775.9,3.08127522]
[1753144066695,0.002,3776.0,3775.9,3.21327522]
[1753144067615,0.002,3776.0,3775.9,0.132]
[1753144068537,0.002,3776.0,3775.5,7.51414589]
[1753144068538,0.02852747,3776.0,3775.5,0.8195]
[1753144068705,6.06191406,3775.7,3775.5,2.78065297]
[1753144069721,6.06191406,3775.7,3775.5,0.5788]
[1753144070133,6.06191406,3775.7,3775.5,3.22743817]
[1753144072195,6.06191406,3775.7,3775.6,2.64858565]
[1753144072412,6.06191406,3775.7,3775.6,3.09538565]
[1753144072603,6.06191406,3775.8,3775.7,2.6485155]
[1753144072794,10.10691406,3775.8,3775.7,2.6485155]
[1753144072995,10.10691406,3775.8,3775.7,0.4468]
[1753144073915,10.10691406,3775.8,3775.5,0.132]
[1753144074116,0.02652747,3775.7,3775.5,0.132]
[1753144074830,0.02652747,3775.7,3775.6,0.4468]
[1753144075038,4.045,3775.7,3775.6,0.4468]
[1753144075535,4.045,3775.7,3775.5,2.78063806]
[1753144076237,4.045,3775.7,3775.5,3.22743806]
[1753144076435,4.045,3775.7,3775.6,2.64858565]
[1753144078447,4.045,3775.7,3775.6,3.09538565]
[1753144078948,4.045,3775.7,3775.6,0.4468]
[1753144079459,4.045,3775.7,3775.5,0.132]
[1753144079835,4.045,3775.7,3775.5,2.78064088]
[1753144080036,4.045,3775.7,3775.5,3.22744088]
[1753144080749,4.045,3775.7,3775.5,0.5788]
[1753144081109,0.02652747,3775.9,3775.5,0.132]
[1753144081311,0.002,3776.0,3775.9,2.64837522]
[1753144081741,0.002,3776.0,3775.9,3.09517522]
[1753144082666,0.002,3776.0,3775.9,0.4468]
[1753144083168,0.002,3776.0,3775.7,0.132]
[1753144083368,6.06191406,3775.8,3775.7,2.6485155]
[1753144083530,0.002,3776.0,3775.8,2.64838247]
[1753144083727,0.002,3776.0,3775.9,2.64837522]
[1753144084043,0.002,3776.0,3775.9,3.09517522]
[1753144084263,0.002,3776.0,3775.9,0.4468]
[1753144084430,0.002,3776.0,3775.8,2.78042495]
[1753144084752,0.002,3776.0,3775.8,3.22722495]
[1753144084954,0.002,3776.0,3775.9,2.64837522]
[1753144085176,0.002,3776.0,3775.9,3.09517522]
[1753144086572,0.002,3776.0,3775.9,3.85347522]
[1753144088226,0.002,3776.0,3775.9,4.92402067]
[1753144090860,0.002,3776.0,3775.9,4.95050442]
[1753144094973,0.002,3776.0,3775.9,4.92402067]
[1753144095148,0.002,3776.0,3775.9,3.85347522]
[1753144100401,0.002,3776.0,3775.9,3.09517522]
[1753144100597,0.002,3776.0,3775.9,2.64837522]
[1753144100797,0.02852747,3776.0,3775.8,0.132]
[1753144101102,0.02852747,3776.0,3775.5,4.043]
[1753144101264,0.02852747,3776.0,3775.6,2.64853922]
[1753144101689,0.002,3776.0,3775.7,2.64850982]
[1753144102499,0.002,3776.0,3775.6,0.4581]
[1753144102701,0.002,3776.0,3775.7,2.6484905]
[1753144103205,0.002,3776.0,3775.6,0.4581]
[1753144103206,0.02852747,3776.0,3775.6,0.4581]
[1753144103371,0.02852747,3776.0,3775.6,3.10667741]
[1753144103571,0.02852747,3776.0,3775.6,0.4581]
[1753144103903,0.02852747,3776.0,3775.6,3.10666491]
[1753144104511,0.002,3776.0,3775.7,2.64850765]
[1753144104670,0.002,3776.0,3775.7,3.10660765]
[1753144104877,0.002,3776.0,3775.7,0.4581]
[1753144105281,0.002,3776.0,3775.4,0.001]
[1753144105282,2.64858179,3775.7,3775.4,0.001]
[1753144105481,6.19391406,3775.5,3775.4,0.001]
[1753144105884,6.22044153,3775.5,3775.4,0.001]
[1753144106204,4.043,3775.5,3775.4,0.001]
[1753144107308,2.67518327,3775.5,3775.4,0.001]
[1753144107473,6.85018327,3775.5,3775.4,0.001]
[1753144107812,4.2335,3775.5,3775.4,0.001]
[1753144108011,4.26002747,3775.5,3775.4,0.001]
[1753144108423,0.1905,3775.5,3775.4,0.001]
[1753144108604,4.2335,3775.5,3775.4,0.001]
[1753144110717,0.1905,3775.5,3775.4,0.001]
[1753144110906,4.175,3775.5,3775.4,0.001]
[1753144113130,4.175,3775.5,3775.4,0.4591]
[1753144114901,4.175,3775.5,3775.4,0.001]
[1753144118229,4.20152747,3775.5,3775.4,0.001]
[1753144120122,6.85018327,3775.5,3775.4,0.001]
[1753144120292,4.175,3775.5,3775.4,0.001]
[1753144120497,4.20152747,3775.5,3775.4,0.001]
[1753144126960,4.26002747,3775.5,3775.4,0.001]
[1753144127133,4.46952747,3775.5,3775.4,0.001]
[1753144127341,4.26002747,3775.5,3775.4,0.001]
[1753144128049,0.21702747,3775.5,3775.4,0.001]
[1753144128254,0.15852747,3775.5,3775.4,0.4387]
[1753144128568,4.174,3775.5,3775.4,0.001]
[1753144128768,4.20052747,3775.5,3775.4,0.001]
[1753144129177,0.15852747,3775.5,3775.4,0.001]
[1753144129679,4.20052747,3775.5,3775.4,0.001]
[1753144129975,7.11718327,3775.5,3775.4,0.001]
[1753144130181,7.0906558,3775.5,3775.4,0.001]
[1753144130851,2.8391558,3775.5,3775.4,0.001]
[1753144131056,13.17909733,3775.5,3775.4,0.001]
[1753144131365,12.94306986,3775.5,3775.4,0.001]
[1753144131925,6.25241406,3775.5,3775.4,0.001]
[1753144132168,10.32094153,3775.5,3775.4,0.001]
[1753144132334,10.29441406,3775.5,3775.4,0.001]
[1753144132536,6.25241406,3775.5,3775.4,0.001]
[1753144132749,10.26244153,3775.5,3775.4,0.001]
[1753144133062,10.23591406,3775.5,3775.4,0.001]
[1753144134434,10.23491406,3775.5,3775.4,0.001]
[1753144134933,4.173,3775.5,3775.4,0.4387]
[1753144135766,4.173,3775.5,3775.4,3.08742596]
[1753144136131,4.173,3775.5,3775.4,0.4387]
[1753144136371,4.173,3775.5,3775.4,0.001]
[1753144136869,4.2315,3775.5,3775.4,0.001]
[1753144137863,0.132,3775.5,3775.4,0.001]
[1753144138259,4.173,3775.5,3775.4,0.001]
[1753144138645,4.2315,3775.5,3775.4,0.001]
[1753144138856,6.8801558,3775.5,3775.4,0.001]
[1753144139373,2.8391558,3775.5,3775.4,0.001]
[1753144139580,6.90668327,3775.5,3775.4,0.001]
[1753144139788,6.8801558,3775.5,3775.4,0.001]
[1753144141503,2.8391558,3775.5,3775.4,0.001]
[1753144141666,2.86568327,3775.5,3775.4,0.001]
[1753144142001,6.90668327,3775.5,3775.4,0.001]
[1753144142305,6.8801558,3775.5,3775.4,0.001]
[1753144142988,4.2315,3775.5,3775.4,0.001]
[1753144143314,4.25802747,3775.5,3775.4,0.001]
[1753144143500,6.90668327,3775.5,3775.4,0.001]
[1753144143667,6.8801558,3775.5,3775.4,0.001]
[1753144145160,2.8391558,3775.5,3775.4,0.001]
[1753144145358,6.90668327,3775.5,3775.4,0.001]
[1753144145571,6.8801558,3775.5,3775.4,0.001]
[1753144146490,0.132,3775.5,3775.4,0.001]
[1753144146691,0.15852747,3775.5,3775.4,0.4387]
[1753144146892,0.132,3775.5,3775.4,0.4387]
[1753144147096,4.173,3775.5,3775.4,0.4387]
[1753144147294,0.132,3775.5,3775.4,0.4387]
[1753144147498,4.173,3775.5,3775.4,0.4387]
[1753144148364,0.132,3775.5,3775.4,0.4387]
[1753144148706,4.173,3775.5,3775.4,0.4387]
[1753144150101,4.173,3775.5,3775.4,3.08742596]
[1753144150411,0.132,3775.5,3775.4,3.08742596]
[1753144150565,4.173,3775.5,3775.4,3.08742596]
[1753144151423,0.1988467,3775.9,3775.5,2.6486558]
[1753144151568,4.173,3775.8,3775.5,2.64862084]
[1753144151913,4.173,3775.8,3775.6,0.4377]
[1753144152063,4.041,3775.7,3775.6,3.08628565]
[1753144153872,4.04,3775.7,3775.6,3.08628565]
[1753144154629,0.132,3775.8,3775.6,3.08628565]
[1753144154815,4.04,3775.7,3775.6,2.64858565]
[1753144154995,0.132,3775.8,3775.7,3.0862155]
[1753144155184,4.172,3775.8,3775.7,3.0862155]
[1753144155587,4.04,3775.8,3775.7,3.0862155]
[1753144156533,4.04,3775.8,3775.5,0.7822]
[1753144156736,0.02652747,3775.7,3775.5,3.4308431]
[1753144157029,4.04,3775.6,3775.5,3.4308431]
[1753144157608,4.04,3775.6,3775.5,3.8605431]
[1753144160116,0.16052747,3776.0,3775.6,2.64857784]
[1753144160337,4.04,3775.9,3775.6,0.4297]
[1753144160527,4.04,3775.9,3775.5,0.7822]
[1753144160716,4.04,3775.9,3775.7,0.4297]
[1753144160912,4.04,3775.9,3775.7,2.64850918]
[1753144161119,4.04,3775.9,3775.8,0.4297]
[1753144161914,4.04,3775.9,3775.8,3.07814536]
[1753144162129,4.04,3775.9,3775.8,0.4297]
[1753144163083,0.134,3776.0,3775.8,0.4297]
[1753144163288,0.134,3776.0,3775.9,3.07807522]
[1753144163489,4.174,3776.0,3775.9,3.07807522]
[1753144164001,0.002,3776.0,3775.9,3.07807522]
[1753144164220,4.041,3776.0,3775.9,3.07807522]
[1753144164535,0.002,3776.0,3775.9,3.07807522]
[1753144164715,4.041,3776.0,3775.9,3.07807522]
[1753144165684,4.041,3776.0,3775.9,0.4297]
[1753144166535,4.041,3776.0,3775.9,3.07807522]
[1753144168755,0.002,3776.0,3775.9,3.07807522]
[1753144169438,0.002,3776.0,3775.9,4.46277679]
[1753144177341,0.002,3776.0,3775.9,3.88747522]
[1753144177716,0.002,3776.0,3775.9,3.07807522]
[1753144180248,4.04,3776.0,3775.9,3.07807522]
[1753144182650,4.04,3776.0,3775.6,2.64852523]
[1753144182835,4.04,3776.0,3775.8,2.64840024]
[1753144183238,4.04,3776.0,3775.8,3.07810024]
[1753144183549,6.06191406,3775.9,3775.7,2.6484781]
[1753144183751,6.06191406,3775.9,3775.8,2.64844536]
[1753144183922,6.06191406,3775.9,3775.8,0.4297]
[1753144184123,6.06191406,3775.9,3775.8,3.07814536]
[1753144185017,6.08844153,3775.9,3775.4,2.78170339]
[1753144185252,6.06191406,3775.6,3775.4,0.001]
[1753144185451,0.02652747,3775.5,3775.4,0.001]
[1753144187759,6.06191406,3775.9,3775.4,0.4501]
[1753144187956,0.132,3775.6,3775.4,0.4501]
[1753144188116,4.037,3775.5,3775.4,2.64972596]
[1753144188322,4.037,3775.5,3775.4,0.001]
[1753144188561,4.06352747,3775.5,3775.4,0.001]
[1753144188724,4.06352747,3775.5,3775.4,2.64972596]
[1753144188924,4.037,3775.5,3775.4,2.64972596]
[1753144189528,4.037,3775.5,3775.4,0.001]
[1753144189753,4.06352747,3775.5,3775.4,2.64972596]
[1753144189950,4.037,3775.5,3775.4,2.64972596]
[1753144190140,4.037,3775.5,3775.4,3.09882596]
[1753144190326,0.132,3775.6,3775.5,2.6486558]
[1753144190523,4.038,3775.6,3775.5,3.0977558]